{"text_format":"3","workbook":"xlsx","n_sheets":1,"sheets":["PRICING SCHEDULE"],"not_rendered":{"images":1,"defined_names":2},"read":"whole","date_system":"1900"}

{"sheet":"PRICING SCHEDULE","index":0,"n_rows":27,"n_cols":20,"rows_kept":27,"merged":[[10,3,10,5],[10,6,10,8],[10,9,10,11],[10,12,10,14],[10,15,10,17],[23,1,26,1],[23,3,23,4],[25,3,25,4],[26,3,26,4]]}
[null,"SUPPLY CHAIN MANAGEMENT"]
[null,"Pricing schedule"]
["RFB No","RFB 3279-2026"]
["RFB Title","APPOINTMENT OF SERVICE PROVIDER TO PROVIDE WASTE SKIPS AND DELIVER WASTE COLLECTION SERVICES IN ALL GAUTENG BUILDINGS FOR A PERIOD OF FIVE (5) YEARS (60 MONTHS)"]
["Bidder Name "]
[]
["1. INSTRUCTION FOR COMPLETING THE PRICING SCHEDULE"]
["(a)  Bidder must complete/enter YELLOW cells only"]
["(b)  Unit and Line prices must be VAT EXCLUSIVE and in South African Rand (ZAR) currency."]
["(c) The price must include all cost to deliver the goods or render the service, including all applicable taxes, logistics/delivery, labour, overtime etc."]
[{"$nulls":3},"Year 1",null,null,"Year 2",null,null,"Year 3",null,null,"Year 4",null,null,"Year 5",null,null,"TOTAL"]
["Item No","Service Description:","Unit of measure","Qty ","Price per skip per week (Excl VAT)","Line Price per year Y1","Qty","Price per skip per week (Excl VAT)","Line Price per year Y2","Qty","Price per skip per week (Excl VAT)","Line Price per year Y3","Qty","Price per skip per week (Excl VAT)","Line Price per year Y4","Qty","Price per skip per week (Excl VAT)","Line Price per year Y5","Line Price Term \n(Excl VAT)","Price clarification comment"]
[1,"Provider waste skip and collection of waste"]
["1.1.","Collection from Erasmuskloof","Price per skip",2,null,{"$f":"((D14*E14)*52)","v":0},2,null,{"$f":"((G14*H14)*52)","v":0},2,null,{"$f":"((J14*K14)*52)","v":0},2,null,{"$f":"((M14*N14)*52)","v":0},2,null,{"$f":"((P14*Q14)*52)","v":0},{"$f":"F14+I14+L14+O14+R14","v":0}]
[1.2,"Collection from Centurion","Price per skip",2,null,{"$f":"((D15*E15)*52)","v":0},2,null,{"$f":"((G15*H15)*52)","v":0},2,null,{"$f":"((J15*K15)*52)","v":0},2,null,{"$f":"((M15*N15)*52)","v":0},2,null,{"$f":"((P15*Q15)*52)","v":0},{"$f":"F15+I15+L15+O15+R15","v":0}]
[1.3,"Collection from Numerus ","Price per skip",1,null,0,1,null,0,1,null,0,1,null,0,1,null,0,0]
[1.4,"Collection from BETA ","Price per skip",1,null,0,1,null,0,1,null,0,1,null,0,1,null,0,0]
[1.5,"AdHOC provision and collection of waste from any of the SITA Gauteng offices(NB: Additional Skips per year required on an Adhoc basis)","Price per skip",6,null,{"$f":"D18*E18","v":0},6,null,{"$f":"G18*H18","v":0},6,null,{"$f":"J18*K18","v":0},6,null,{"$f":"M18*N18","v":0},6,null,{"$f":"P18*Q18","v":0},0]
[null,"TOTAL BID PRICE  (EXCL VAT)",{"$nulls":3},{"$f":"SUM(F14:F18)","v":0},null,null,{"$f":"SUM(I14:I18)","v":0},null,null,{"$f":"SUM(L14:L18)","v":0},null,null,{"$f":"SUM(O14:O18)","v":0},null,null,{"$f":"SUM(R14:R18)","v":0},{"$f":"SUM(S14:S18)","v":0}]
[null,"VAT (@15%)",{"$nulls":3},{"$f":"F21-F19","v":0},null,null,{"$f":"I21-I19","v":0},null,null,{"$f":"L21-L19","v":0},null,null,{"$f":"O21-O19","v":0},null,null,{"$f":"R21-R19","v":0},{"$f":"S21-S19","v":0}]
[null,"TOTAL  BID PRICE (INCL VAT)",{"$nulls":3},{"$f":"F19*1.15","v":0},null,null,{"$f":"I19*1.15","v":0},null,null,{"$f":"L19*1.15","v":0},null,null,{"$f":"O19*1.15","v":0},null,null,{"$f":"R19*1.15","v":0},{"$f":"S19*1.15","v":0}]
[]
[]
[null,"I, the bidder, confirm that the price(s) and rate(s) quoted cover all the goods and/or works specified in the bidding documents; that the price(s) or rate(s) cover all my obligations and I accept that any mistakes regarding price(s), rate(s) or calculations will be at my own risk.\n[Note: First convert to PDF, then add signature]"]
[null,null,"Name","Capacity"]
[]
[null,null,"Signature (above)","Date"]